Cogmind - Beta 13 @@@ ROGUE MODE // 2024.05.11 @ 11:16:23 // AFD2020/Player2 Player: CrossedViper Result: Core destroyed Performance ------------- Evolutions (0) 0 Regions Visited (3) 600 Robots Destroyed (19) 95 Value Destroyed (443) 443 Prototype IDs (0) 0 Alien Tech Used (0) 0 Bonus (-57) -57 TOTAL SCORE: 1081 Bonus ------- Follower Combat Kills 84 Friendly Fire -141 Cogmind --------- Core Integrity 0/250 Matter 195/300 Energy 250/250 System Corruption 2% Temperature Cool (0) Movement Treading (240) Ox1 Location -10/Subcaves Parts ------- > --- POWER (1) -------- Ion Engine > --- PROPULSION (2) --- Light Treads > --- UTILITY (2) ------ Large Storage Unit Core Shielding > --- WEAPON (2) ------- Subdweller Laser Rocket Launcher > --- INVENTORY (15) --- High-capacity Storage Unit Subdweller Optics Improved Terrain Scanner Transport Network Coupler Light Armor Plating Light Armor Plating Subdweller Beam Cannon Grenade Launcher Peak State ------------ > --- POWER ------------ Ion Engine > --- PROPULSION ------- Light Treads > --- UTILITY ---------- Large Storage Unit Core Shielding > --- WEAPON ----------- Subdweller Laser Subdweller Beam Cannon > --- INVENTORY -------- High-capacity Storage Unit Subdweller Optics Improved Terrain Scanner Transport Network Coupler Light Armor Plating Grenade Launcher Rocket Launcher [Rating: 9] Favorites ----------- Power Ion Engine Engine Ion Engine Propulsion Aluminum Leg Treads Light Treads Leg Aluminum Leg Utility Core Shielding Storage Large Storage Unit Protection Core Shielding Weapon EM Pulse Gun Energy Gun EM Pulse Gun Energy Cannon Subdweller Beam Cannon Launcher Rocket Launcher Build | -11 -10 -10 -10 ------- Run | Yrd Mat Min Sub Slots Evolved . | . . . . Power . | . . . . Propulsion . | . . . . Utility . | . . . . Weapon . | . . . . Parts Attached 19 | 6 5 . 8 Power 5 | 1 1 . 3 Engine 5 | 1 1 . 3 Core . | . . . . Reactor . | . . . . Propulsion 5 | 4 . . 1 Treads 3 | 2 . . 1 Leg 2 | 2 . . . Wheel . | . . . . Hover . | . . . . Flight . | . . . . Utility 3 | 1 2 . . Device . | . . . . Storage 2 | 1 1 . . Processor . | . . . . Hackware . | . . . . Protection 1 | . 1 . . Artifact . | . . . . Weapon 6 | . 2 . 4 Energy Gun 3 | . 2 . 1 Energy Cannon 1 | . . . 1 Ballistic Gun . | . . . . Ballistic Cannon . | . . . . Launcher 2 | . . . 2 Special Weapon . | . . . . Impact Weapon . | . . . . Slashing Weapon . | . . . . Piercing Weapon . | . . . . Special Melee Weapon . | . . . . Unidentified Prototypes . | . . . . Corrupted Parts 1 | . . . 1 System Corruption 2 | . . . 2 Parts Lost 4 | . . . 4 Power 1 | . . . 1 Propulsion 2 | . . . 2 Utility . | . . . . Weapon 1 | . . . 1 Highest Loss Streak 4 | . . . 4 To Critical Strikes . | . . . . Average Slot Usage (%) 91 | . 91 100 85 Engine 13 | . 14 14 13 Treads 4 | . . . 13 Leg 19 | . 28 28 1 Storage 14 | . 14 14 14 Protection 13 | . 12 14 14 Energy Gun 20 | . 20 28 14 Energy Cannon 3 | . . . 12 Naked Turns . | . . . . Heaviest Build 38 | 8 29 29 38 Greatest Support 40 | 40 20 20 20 Greatest Overweight (x) 1 | . 1 1 1 Average Overweight (x) . | . . 1 1 Largest Inventory Capacity 15 | 8 15 15 15 Average Capacity 13 | 6 12 15 15 Most Carried 8 | 6 6 8 8 Average Carried 4 | 3 3 6 5 Final Capacity 15 | 8 15 15 15 Final Carried 9 | 6 6 8 9 Class Distribution -------------------- 71% | Mutant 28% | Scavenger-Mutant Dominant Class ---------------- Mutant | -10/Materials Mutant | -10/Mines Scavenger-Mutant | -10/Subcaves Resources | -11 -10 -10 -10 ----------- Run | Yrd Mat Min Sub Matter Collected 393 | 227 83 . 83 Remotely . | . . . . Salvage Created 746 | . 502 46 198 Parts 42 | . 23 6 13 Haulers Intercepted 2 | . 2 . . Recyclers Shooed 2 | . 2 . . Parts Field Recycled . | . . . . Retrieved Matter . | . . . . Parts Self-Destructed 4 | . . . 4 Prevented . | . . . . Kills | -11 -10 -10 -10 ------- Run | Yrd Mat Min Sub Combat Hostiles Destroyed 13 | . 7 2 4 Guns 8 | . 6 2 . Cannons 1 | . . . 1 AOE 4 | . 1 . 3 Classes Destroyed 7 | . 4 1 2 Tunneler 1 | . . 1 . Hauler 2 | . 2 . . Recycler 2 | . 2 . . Turret 1 | . . . 1 Swarmer 5 | . 2 2 1 Grunt 5 | . 5 . . Subdweller 3 | . . . 3 Best Kill Streak 3 | . 3 2 2 Combat Bots Only 2 | . 2 2 2 Max Kills in Single Turn 2 | . 1 1 2 Gunslinging . | . . . . Exploded 2 | . 1 . 2 Melee . | . . . . Uniques/NPCs Destroyed . | . . . . Combat | -11 -10 -10 -10 -------- Run | Yrd Mat Min Sub Hostile Shots Fired 53 | . 17 7 29 Missed 17 | . 7 2 8 Damage Taken 597 | . 84 48 465 Core 86 | . . . 86 Absorbed by Shields . | . . . . Redirected to Shielding 18 | . . . 18 Core Remaining (%) 100 | 100 . . . Volleys Fired 76 | . 36 14 26 Largest 2 | . 2 2 2 Hottest 140 | . 80 80 140 Shots Fired 101 | . 45 20 36 Gun 81 | . 45 20 16 Cannon 11 | . . . 11 Launcher 9 | . . . 9 Special . | . . . . Kinetic . | . . . . Thermal 47 | . 9 14 24 Explosive 9 | . . . 9 Electromagnetic 45 | . 36 6 3 Robot Hit Streak 20 | . 20 7 13 Robot Miss Streak 3 | . 3 2 3 Penetration Max . | . . . . Secondary Targets 2 | . 1 1 . Max Gunslinging Chain 1 | . 1 1 . Shots Hit Robots 68 | . 30 14 24 Core Hits 32 | . 13 3 16 Critical Kills . | . . . . Critical Parts Destroyed 1 | . . . 1 Critical Strikes 1 | . . . 1 Destroy 1 | . . . 1 Melee Attacks . | . . . . Impact . | . . . . Slashing . | . . . . Piercing . | . . . . Sneak Attacks . | . . . . Combat Hostiles . | . . . . Follow-up Attacks . | . . . . Damage Inflicted 1369 | . 559 213 597 Guns 686 | . 445 160 81 Cannons 141 | . . . 141 Explosions 535 | . 113 47 375 Melee . | . . . . Ramming 7 | . 1 6 . Kinetic . | . . . . Thermal 551 | . 170 159 222 Explosive 375 | . . . 375 Electromagnetic 436 | . 388 48 . Impact . | . . . . Slashing . | . . . . Piercing . | . . . . Highest Corruption 2 | . . . 2 Average Corruption 2 | . . . 2 Corruption Purged . | . . . . Corruption Blocked . | . . . . Effects 9 | . . . 9 Message Errors 2 | . . . 2 Matter Fused 4 | . . . 4 Energy Discharges 1 | . . . 1 Data Loss (minor) 1 | . . . 1 Alerts 1 | . . . 1 Overload Shots . | . . . . Overflow Damage . | . . . . Projectiles . | . . . . Explosions . | . . . . Melee . | . . . . Knockbacks . | . . . . Impact . | . . . . Kinetic . | . . . . Secondary . | . . . . Self-Inflicted Damage 49 | . . . 49 Shots 1 | . . . 1 Rammed . | . . . . Targets Rammed 3 | . 2 1 . Kicked 3 | . 2 1 . Crushed . | . . . . Highest Temperature 271 | . 72 108 271 Average Temperature 54 | . 28 55 84 Received Heat Transfer 456 | . 12 . 444 Siege Activations . | . . . . Robots Corrupted . | . . . . Combat Hostiles . | . . . . Parts Fried . | . . . . Impact Corruptions . | . . . . Robots Melted . | . . . . Combat Hostiles . | . . . . Parts Melted 2 | . . . 2 Heat Transferred 841 | . 256 300 285 Parts Sabotaged . | . . . . Parts Stolen . | . . . . Parts Stripped . | . . . . Power Chain Reactions 4 | . 3 1 . Alert | -11 -10 -10 -10 ------- Run | Yrd Mat Min Sub Peak Influence 276 | . 276 246 . Initial 84 | . . 84 . Average 142 | . 125 213 . Maximum Alert Level 1 | . 1 1 . Low Security (%) 73 | 100 92 18 . Level 1 26 | . 7 81 . Level 2 . | . . . . Level 3 . | . . . . Level 4 . | . . . . Level 5 . | . . . . High Security . | . . . . Max Security . | . . . . Squads Dispatched 3 | . 3 . . Investigation 2 | . 2 . . Extermination . | . . . . Reinforcement 1 | . 1 . . Assault . | . . . . Garrison . | . . . . Intercept . | . . . . Searches Triggered . | . . . . Construction Impeded . | . . . . Haulers Reinforced . | . . . . Active Scanning Responses . | . . . . Cargo Convoy Interrupts . | . . . . Stealth | -11 -10 -10 -10 --------- Run | Yrd Mat Min Sub Distress Signals . | . . . . Communications Jammed . | . . . . Distress Signals . | . . . . Times Spotted 50 | . 13 3 34 Peak Tracking Total 3 | . 3 3 3 Tactical Retreats 2 | . . . 2 Traps | -11 -10 -10 -10 ------- Run | Yrd Mat Min Sub Traps Triggered . | . . . . Indirectly . | . . . . Trap Hack Attempts . | . . . . Triggered . | . . . . Disarmed . | . . . . Reprogrammed . | . . . . Reused . | . . . . Traps Extracted . | . . . . Installed . | . . . . Triggered . | . . . . Machines | -11 -10 -10 -10 ---------- Run | Yrd Mat Min Sub Machines Disabled 8 | . 1 4 3 Max in Single Turn 2 | . 1 2 1 Machines Repaired . | . . . . Machines Dismantled . | . . . . Machines Sabotaged . | . . . . Overloaded Fab Kills . | . . . . Hacking | -11 -10 -10 -10 --------- Run | Yrd Mat Min Sub Machines Accessed 6 | . 6 . . Terminals 4 | . 4 . . Fabricators . | . . . . Repair Stations . | . . . . Recycling Units 2 | . 2 . . Scanalyzers . | . . . . Garrison Access . | . . . . Total Hacks 16 | . 16 . . Successful 9 | . 9 . . Failed 6 | . 6 . . Catastrophic 2 | . 2 . . Database Lockouts 1 | . 1 . . Manual 13 | . 13 . . Terminals 13 | . 13 . . Fabricators . | . . . . Repair Stations . | . . . . Recycling Units 3 | . 3 . . Scanalyzers . | . . . . Garrison Access . | . . . . Terminal Hacks 7 | . 7 . . Robot Analysis 4 | . 4 . . Branch Access Points 1 | . 1 . . Emergency Access Points 1 | . 1 . . Recycling Unit Index 1 | . 1 . . Fabricator Hacks . | . . . . Repair Station Hacks . | . . . . Recycling Unit Hacks . | . . . . Scanalyzer . | . . . . Garrison Access Hacks . | . . . . Unauthorized Hacks 2 | . 2 . . Terminals . | . . . . Fabricators . | . . . . Repair Stations . | . . . . Recycling Units 2 | . 2 . . Tunnel 2 | . 2 . . Scanalyzers . | . . . . Garrison Access . | . . . . Data Cores Recovered . | . . . . Used . | . . . . Hacking Detections 5 | . 5 . . Full Trace Events 2 | . 2 . . Feedback Events . | . . . . Feedback Blocked . | . . . . Robot Schematics Acquired . | . . . . Robots Built . | . . . . Authchips . | . . . . Time . | . . . . Total Robot Build Rating . | . . . . Part Schematics Acquired . | . . . . Parts Built . | . . . . Authchips . | . . . . Time . | . . . . Total Part Build Rating . | . . . . Parts Repaired . | . . . . Time . | . . . . Parts Recycled . | . . . . Recycled Matter . | . . . . Retrieved Matter . | . . . . Retrieved Components . | . . . . Parts Scanalyzed . | . . . . Part Schematics Acquired . | . . . . Parts Damaged . | . . . . Bothacking | -11 -10 -10 -10 ------------ Run | Yrd Mat Min Sub Used RIF Installer . | . . . . Robots Hacked . | . . . . Non-combat . | . . . . Combat . | . . . . Robot Hacks Applied . | . . . . Relay Couplers Released . | . . . . Fabnet Peak Effective % . | . . . . Robots Rewired . | . . . . Allies Hacked . | . . . . Hacks Repelled . | . . . . Allies | -11 -10 -10 -10 -------- Run | Yrd Mat Min Sub Total Allies 1 | . 1 . . Largest Group 1 | . 1 1 1 Highest-Rated Group 64 | . 60 60 64 Highest-Rated Ally 64 | . 60 60 64 Total Orders . | . . . . Ally Attacks 57 | . 28 9 20 Total Damage 671 | . 413 136 122 Kills 11 | . 7 3 1 Allies Corrupted . | . . . . Allies Melted . | . . . . Intel | -11 -10 -10 -10 ------- Run | Yrd Mat Min Sub Robot Analysis Total 4 | . 4 . . Derelict Logs Recovered 2 | . . 2 . Drone Launches . | . . . . Drone Recoveries . | . . . . Exploration | -11 -10 -10 -10 ------------- Run | Yrd Mat Min Sub Turns Passed 2510 | 94 1194 474 748 Spaces Moved 988 | 60 546 170 212 Core 5 | 5 . . . Treads 226 | 27 . . 199 Legs 757 | 28 546 170 13 Wheels . | . . . . Hover . | . . . . Flight . | . . . . Fastest Speed 50 | 50 120 190 190 Average Speed 184 | 132 168 190 236 Slowest Speed 240 | 160 190 190 240 Overloaded Moves . | . . . . Propulsion Burnouts . | . . . . Robots Hopped . | . . . . Cave-ins Triggered . | . . . . Exploration Rate (%) 35 | 4 78 39 21 Regions Visited 3 Branch Regions 2 Pre-discovered Areas 2 | . 2 . . Known Exits Taken 1 | . 1 . . Unknown Exits Taken 2 | 1 . 1 . Scrap Searched . | . . . . Spaces Dug . | . . . . Terrain Destroyed 67 | . 12 . 55 Melee . | . . . . Projectile . | . . . . AOE 67 | . 12 . 55 Terrain Rammed . | . . . . Walls Destroyed . | . . . . Machines Disabled . | . . . . Actions | -11 -10 -10 -10 --------- Run | Yrd Mat Min Sub Total 1572 | 72 777 301 422 Wait 461 | . 176 115 170 Move 985 | 59 545 169 212 Hop . | . . . . Pick Up 19 | 7 6 2 4 Fast Attach 6 | 3 2 . 1 Attach 5 | 1 1 . 3 Detach . | . . . . Swap 8 | 2 2 . 4 Drop 9 | . 7 . 2 Fire 76 | . 36 14 26 Melee . | . . . . Ram . | . . . . Kick 3 | . 2 1 . Crush . | . . . . Escape Stasis . | . . . . Rewire . | . . . . Trap . | . . . . Miscellaneous . | . . . . Route ------- -11/Scrapyard -10/Materials (discovered 3 exits: [*Mat x2] / *Min) -10/Mines (discovered 3 exits: [*Mat x2] / [*Sub]) -10/Subcaves (discovered 1 exit: [*Rec]) History --------- Turn | Location | Event 3 | -11/Scrapyard | Discovered new exit (range 16) 95 | -11/Scrapyard | Entered Materials 317 | -10/Materials | Build established: Mutant 631 | -10/Materials | Discovered new exit (range 3) 834 | -10/Materials | Central database locked down 882 | -10/Materials | Identified exit to Mines 1178 | -10/Materials | Discovered new exit (range 10) 1289 | -10/Materials | Entered Mines 1354 | -10/Mines | Discovered new exit (range 15) 1369 | -10/Mines | Learned 2 Materials zone layouts 1412 | -10/Mines | Received a Rocket Launcher from a helpful Derelict 1524 | -10/Mines | Discovered new exit (range 16) 1715 | -10/Mines | Discovered new exit (range 5) 1763 | -10/Mines | Entered Subcaves 1799 | -10/Subcaves | Core integrity fell below 50% 1835 | -10/Subcaves | Lost 4 parts (1p2n1w) 2088 | -10/Subcaves | Build established: Scavenger-Mutant 2165 | -10/Subcaves | Shifting Twisted Machinery released Sub. Laser 2414 | -10/Subcaves | Shifting Twisted Machinery released Mak. Light Armor Plating 2491 | -10/Subcaves | Core integrity fell below 20% 2497 | -10/Subcaves | Discovered new exit (range 10) 2511 | -10/Subcaves | Core destroyed Last Messages --------------- 02495_ S-10 Pest destroyed. 02497_ EXIT=FOUND 02498_ Player 2 drops Imp. Heat Sink. 02498_ Player 2 drops Sub. Power Source. 02499_ Player 2 drops Sub. Machine Gun. 02499_ Machine disabled. 02499_ Player 2 drops Battle Rifle. 02500_ Player 2 attaches Aluminum Leg. 02501_ Player 2 attaches Mak. Light Armor Plating. 02501_ Machine disabled. 02502_ Player 2 attaches Sub. Laser. 02503_ Player 2 attaches Corrupted Ion Engine. 02504_ Player 2 attaches Sml. Laser. 02505_ WF/WYKD,ZNROLIKZHM/U#VPUZ/DKE6 1Q 02505_ The unstable cave ceiling collapses. 02505_ Autobeam Turret destroyed. 02509_ Lgt. Ion Engine fries itself beyond repair. 02510_ The unstable cave ceiling collapses. Map ----- +----------------------------------------------------+ | ?????????????????????????????????????????????????? | | ?????????????????????????????????????????????????? | | ?????????????????????????????????????????????????? | | ?????????????????????????????????????????????????? | | ?????????????????????????????????????????????????? | | ?????????????????????????????????????????????????? | | ?????????????????????????????????????????????????? | | ?????????????????????????????????????????????????? | | ?????????????????????????????????????????????????? | | ?????????????????????????????????????????????????? | | ?????????????????????????????????????????????????? | | ?????????????????????????????????????????????????? | | ????????????????????????????????#????????????????? | | ??????????????????????????????? ????????????????? | | ??????????????????????????????? #????????????????? | | ?????????????????????????????? ##???????????????? | | ?????????????????????????????? ##??????????????? | | ?????????????????????????????? #??????????????? | | ?????????????????????????????? #??? ??????????? | | ?????????????????????????????? ## ???????????? | | ?????????????????#??###??????# ?????????????? | | ??????????? #### ## ###### ???????????????? | | ??????????? $ & ?????????????????? | | ???????????? &% #??????????????????? | | ????????????????#; #??????????????????? | | ?????????????????#; *@ #??????????????????? | | ?????????????????#; % [![# #??????????????????? | | ?????????????????#;;; @ ## #??????????????????? | | ?????????????????# # #??????????????????? | | ????????????????# s # "##?????????????????? | | ????????????????# ## "##????????????????? | | ???????????????# t ?# ""#????????????????? | | ?????????????? ## " #????????????????? | | ?????????????# # ##??#####????????? | | ????????????? < #### #?# ""#????????? | | ?????????????? ####?# ## ""#????????? | | ?????????????? ##????## #????????????? | | ??????????????#### #??????# #????????????? | | ??????????????? ##???????# ##?? ?????????? | | ????????????????# #????????### #?? #?????????? | | ?????????????????# ########### #? ""#????????? | | ?????????????????# # # # " "!% ##"" #????????? | | ?????????????????# "" "!&## """ #?????????? | | ?????????????????# " " %%#""" # #?????????? | | ????????????????????# [& &##& ##????????? | | ????????????????????## " " *#"#%&## ##???????? | | ?????????????????????## """ & #???????? | | ??????????????????????## #???????? | | ??????????????????????## #####???????? | | ?????????????????????## ###???????????? | +----------------------------------------------------+ Best States ------------- Heat Dissipation 25 Energy Generation 10 Energy Capacity 250 Matter Stores 300 Matter Capacity 300 Sight Range 16 Terrain Scan Density 10 Core Shielding 20 Evasion (%) 55 Recoil Reduction 2 Item Schematics ----------------- None Robot Schematics ------------------ None Fabricated ------------ Nothing Alien Tech Used ----------------- None Achievements -------------- None Challenges ------------ None Player 2 | -11 -10 -10 -10 ---------- Run | Yrd Mat Min Sub Slots Evolved . | . . . . Power . | . . . . Propulsion . | . . . . Utility . | . . . . Weapon . | . . . . Parts Attached 19 | . 10 . 9 Parts Lost 2 | . . . 2 Damage Taken 853 | . 331 52 470 Core 168 | . 92 10 66 Player 2/Cogmind (%) 66 | . 100 100 43 Absorbed by Shields . | . . . . Damage Inflicted 671 | . 413 136 122 Player 2/Cogmind (%) 32 | . 42 38 16 Combat Hostiles Destroyed 4 | . 3 1 . Player 2/Cogmind (%) 23 | . 30 33 . Game ------ Seed AerolevForceStreamer Manual? 0 Play Time 00:10:25 Cumulative 779.1 hours Start 2024.05.11 @ 11:06:11 End 2024.05.11 @ 11:16:23 Sessions 1 Manual Loads 0 Difficulty Rogue Special Mode AFD2020/Player2 Game No. 500 Rogue 493 Adventurer 0 Explorer 7 Win Type - Total 55 Types 20/5/19/2/0/1/6/1/1 Lore% 89 Gallery% 96 Achievement% 84 Wizard Run 0 Options --------- Layout 2 ASCII 0 Keyboard 0 Movement Numpad Keybinds 0 Fullscreen 1 Font 24/Tamsyn Map View 50x44 Zoom Use 0% Tactical HUD 1 Map Filters NONE Filters NONE Steam 1 RUN: b661d19b-517a-4c16-b381-c3883747c7e1